[Event "1st Bella Italia International 2022"]
[Site "Lignano"]
[Date "2022.08.18"]
[Round "3.15"]
[White "Arana Garate, Jon"]
[Black "Urbani, Gabriel"]
[Result "0-1"]
[ECO "D00"]
[WhiteElo "1933"]
[BlackElo "2046"]
[Annotator "NA RC"]
[PlyCount "51"]
[EventDate "2022.08.18"]
[EventCountry "ITA"]
[SourceTitle "playchess.com"]
[Source "ChessBase"]
[SourceQuality "1"]
[TimeControl "5400+30"]

1. d4 {[%emt 0:00:03]} d5 {[%emt 0:00:16]} 2. Bf4 {[%emt 0:00:08]} Nf6 {[%emt 0:01:01]} 3. e3 {[%emt 0:00:24]} c5 {[%emt 0:00:24]} 4. c3 {[%emt 0:00:12]} Qb6 {[%emt 0:01:34]} 5. Qb3 {[%emt 0:00:49]} c4 {[%emt 0:00:33]} 6. Qc2 {[%emt 0:00:09]} Nc6 {[%emt 0:02:58]} 7. Nd2 {[%emt 0:00:33]} Bg4 {[%emt 0:13:01]} 8. e4 {[%emt 0:06:08]} e6 {[%emt 0:00:59]} 9. exd5 {[%emt 0:11:28]} exd5 {[%emt 0:01:11]} 10. Be2 {[%emt 0:03:22]} Bxe2 {[%emt 0:02:44]} 11. Nxe2 {[%emt 0:00:04]} Ne7 {[%emt 0:02:32]} 12. O-O {[%emt 0:00:40]} Ng6 {[%emt 0:00:36]} 13. Be5 {[%emt 0:15:10]} Be7 {[%emt 0:03:27]} 14. Nf3 {[%emt 0:05:40]} O-O {[%emt 0:02:27]} 15. Ng3 {[%emt 0:02:57]} Rfe8 {[%emt 0:03:51]} 16. Rfe1 {[%emt 0:05:35]} Bf8 {[%emt 0:04:00]} 17. Bxf6 {[%emt 0:06:37]} Qxf6 {[%emt 0:01:25]} 18. Kf1 {[%emt 0:10:35]} Nf4 {[%emt 0:08:12]} 19. Ne5 {[%emt 0:00:45]} Bd6 {[%emt 0:01:52]} 20. Ng4 {[%emt 0:09:50]} Qh4 {[%emt 0:05:38]} 21. f3 {[%emt 0:03:05]} Nd3 {[%emt 0:03:41]} 22. Rxe8+ {[%emt 0:11:13]} Rxe8 {[%emt 0:00:10]} 23. Nf2 {[%emt 0:00:59]} Qxh2 {[%emt 0:01:23]} 24. Nf5 {[%emt 0:01:56]} Nf4 {[%emt 0:01:44]} 25. Nh4 {[%emt 0:02:54]} Qxh4 {[%emt 0:00:43]} 26. g3 {[%emt 0:00:02]} 0-1

[Event "1st Bella Italia International 2022"]
[Site "Lignano"]
[Date "2022.08.18"]
[Round "3.16"]
[White "Seres, Bela"]
[Black "Sala, Giulia"]
[Result "1-0"]
[ECO "A25"]
[WhiteElo "2207"]
[BlackElo "1958"]
[Annotator "NA RC"]
[PlyCount "55"]
[EventDate "2022.08.18"]
[EventCountry "ITA"]
[SourceTitle "playchess.com"]
[Source "ChessBase"]
[SourceQuality "1"]
[TimeControl "5400+30"]

1. c4 {[%emt 1:31:00]} Nf6 {[%emt 0:04:54]} 2. Nc3 {[%emt 0:00:00]} g6 {[%emt 0:00:14]} 3. g3 {[%emt 0:00:00]} Bg7 {[%emt 0:00:19]} 4. Bg2 {[%emt 0:00:00]} O-O {[%emt 0:00:15]} 5. d3 {[%emt 0:00:00]} Nc6 {[%emt 0:00:35]} 6. Rb1 {[%emt 0:00:00]} d6 {[%emt 0:02:05]} 7. b4 {[%emt 0:00:00]} e5 {[%emt 0:00:16]} 8. e3 {[%emt 0:00:00]} Nd7 {[%emt 0:02:18]} 9. Nge2 {[%emt 0:00:00]} f5 {[%emt 0:02:01]} 10. O-O {[%emt 0:00:00]} g5 {[%emt 0:02:36]} 11. Nd5 {[%emt 0:00:00]} Nf6 {[%emt 0:04:39]} 12. f4 {[%emt 0:00:00]} exf4 {[%emt 0:01:16]} 13. exf4 {[%emt 0:00:00]} g4 {[%emt 0:00:17]} 14. Bb2 {[%emt 0:00:00]} Ne7 {[%emt 0:02:48]} 15. Nxf6+ {[%emt 0:00:00]} Bxf6 {[%emt 0:00:04]} 16. Bxf6 {[%emt 0:00:00]} Rxf6 {[%emt 0:00:03]} 17. d4 {[%emt 0:00:00]} d5 {[%emt 0:07:27]} 18. c5 {[%emt 0:00:00]} b6 {[%emt 0:03:36]} 19. Re1 {[%emt 0:00:00]} bxc5 {[%emt 0:01:33]} 20. dxc5 {[%emt 0:00:00]} c6 {[%emt 0:03:57]} 21. Nd4 {[%emt 0:00:00]} a5 {[%emt 0:09:59]} 22. b5 {[%emt 0:00:00]} cxb5 {[%emt 0:01:11]} 23. Rxe7 {[%emt 0:00:00]} Qxe7 {[%emt 0:03:29]} 24. Bxd5+ {[%emt 0:00:00]} Be6 {[%emt 0:01:12]} 25. Bxa8 {[%emt 0:00:00]} Bc4 {[%emt 0:02:12]} 26. Nxb5 {[%emt 0:00:00]} Qe3+ {[%emt 0:05:57]} 27. Kh1 {[%emt 0:00:00]} Be2 {[%emt 0:00:30]} 28. Qd4 {[%emt 0:00:00]} 1-0

[Event "1st Bella Italia International 2022"]
[Site "Lignano"]
[Date "2022.08.18"]
[Round "3.17"]
[White "Olmo Vega, Diego"]
[Black "Massironi, Marco"]
[Result "0-1"]
[ECO "D76"]
[WhiteElo "2035"]
[BlackElo "2200"]
[Annotator "NA RC"]
[PlyCount "108"]
[EventDate "2022.08.18"]
[EventCountry "ITA"]
[SourceTitle "playchess.com"]
[Source "ChessBase"]
[SourceQuality "1"]
[TimeControl "5400+30"]

1. Nf3 {[%emt 0:00:07]} Nf6 {[%emt 0:09:07]} 2. g3 {[%emt 0:00:09]} g6 {[%emt 0:00:08]} 3. Bg2 {[%emt 0:00:02]} Bg7 {[%emt 0:00:12]} 4. O-O {[%emt 0:00:17]} O-O {[%emt 0:00:04]} 5. c4 {[%emt 0:00:18]} d5 {[%emt 0:00:31]} 6. cxd5 {[%emt 0:02:02]} Nxd5 {[%emt 0:00:04]} 7. d4 {[%emt 0:00:26]} Nb6 {[%emt 0:00:17]} 8. Nc3 {[%emt 0:05:28]} Nc6 {[%emt 0:00:10]} 9. d5 {[%emt 0:10:24]} Na5 {[%emt 0:01:14]} 10. e4 {[%emt 0:04:56]} c6 {[%emt 0:00:13]} 11. dxc6 {[%emt 0:13:59]} Nxc6 {[%emt 0:01:24]} 12. Nd5 {[%emt 0:27:08]} Nxd5 {[%emt 0:10:19]} 13. Qxd5 {[%emt 0:04:14]} Be6 {[%emt 0:02:03]} 14. Qb5 {[%emt 0:04:34]} Na5 {[%emt 0:09:53]} 15. Bd2 {[%emt 0:05:29]} Nc4 {[%emt 0:00:34]} 16. Bc3 {[%emt 0:01:19]} Nd6 {[%emt 0:01:05]} 17. Qa4 {[%emt 0:00:59]} b5 {[%emt 0:02:10]} 18. Qa3 {[%emt 0:08:53]} Nc4 {[%emt 0:22:15]} 19. Qb4 {[%emt 0:00:07]} a5 {[%emt 0:05:15]} 20. Qxb5 {[%emt 0:01:11]} Rb8 {[%emt 0:01:04]} 21. Qc5 {[%emt 0:02:46]} Rc8 {[%emt 0:03:13]} 22. Qg5 {[%emt 0:00:12]} h6 {[%emt 0:01:13]} 23. Qb5 {[%emt 0:01:40]} Bd7 {[%emt 0:08:54]} 24. Qd5 {[%emt 0:02:02]} e6 {[%emt 0:00:05]} 25. Qb7 {[%emt 0:03:19]} Nd6 {[%emt 0:02:16]} 26. Qb3 {[%emt 0:00:39]} Bxc3 {[%emt 0:00:50]} 27. bxc3 {[%emt 0:00:06]} Nxe4 {[%emt 0:00:02]} 28. c4 {[%emt 0:00:44]} Qc7 {[%emt 0:00:35]} 29. Rac1 {[%emt 0:00:26]} Nc5 {[%emt 0:00:38]} 30. Qe3 {[%emt 0:00:10]} Kg7 {[%emt 0:01:51]} 31. Ne5 {[%emt 0:00:06]} h5 {[%emt 0:01:15]} 32. Rfd1 {[%emt 0:00:53]} Be8 {[%emt 0:00:32]} 33. Rd4 {[%emt 0:00:43]} f6 {[%emt 0:00:48]} 34. Nf3 {[%emt 0:00:27]} e5 {[%emt 0:00:55]} 35. Rd2 {[%emt 0:00:28]} Bf7 {[%emt 0:01:03]} 36. Nh4 {[%emt 0:00:47]} Rfd8 {[%emt 0:01:29]} 37. Bd5 {[%emt 0:00:43]} Ne6 {[%emt 0:00:59]} 38. Rcd1 {[%emt 0:00:33]} Nd4 {[%emt 0:01:33]} 39. f4 {[%emt 0:00:31]} Bxd5 {[%emt 0:02:42]} 40. cxd5 {[%emt 0:00:26]} Rxd5 {[%emt 0:00:30]} 41. fxe5 {[%emt 0:00:11]} Qxe5 {[%emt 0:00:32]} 42. Kf2 {[%emt 0:00:50]} Qxe3+ {[%emt 0:05:11]} 43. Kxe3 {[%emt 0:00:05]} Nc2+ {[%emt 0:00:02]} 44. Kf2 {[%emt 0:01:03]} Rxd2+ {[%emt 0:00:50]} 45. Rxd2 {[%emt 0:00:01]} Nb4 {[%emt 0:00:14]} 46. Rd7+ {[%emt 0:00:26]} Kh6 {[%emt 0:00:15]} 47. a3 {[%emt 0:00:02]} Rc2+ {[%emt 0:00:49]} 48. Kg1 {[%emt 0:00:07]} Nc6 {[%emt 0:01:52]} 49. Rd6 {[%emt 0:00:08]} Kg5 {[%emt 0:01:17]} 50. Nf3+ {[%emt 0:01:01]} Kh6 {[%emt 0:03:57]} 51. Rxf6 {[%emt 0:00:12]} Kg7 {[%emt 0:00:01]} 52. Re6 {[%emt 0:00:53]} Rc3 {[%emt 0:00:02]} 53. Kf2 {[%emt 0:00:18]} Rxf3+ {[%emt 0:00:02]} 54. Kg2 {[%emt 0:00:39]} Rc3 {[%emt 0:03:01]} 0-1

[Event "1st Bella Italia International 2022"]
[Site "Lignano"]
[Date "2022.08.18"]
[Round "3.18"]
[White "Marson, Roy"]
[Black "Etxagibel Larranaga, Asier"]
[Result "0-1"]
[ECO "D93"]
[WhiteElo "1959"]
[BlackElo "2118"]
[Annotator "NA RC"]
[PlyCount "103"]
[EventDate "2022.08.18"]
[EventCountry "ITA"]
[SourceTitle "playchess.com"]
[Source "ChessBase"]
[SourceQuality "1"]
[TimeControl "5400+30"]

1. e4 {[%emt 0:00:11]} c6 {[%emt 0:00:02]} 2. d4 {[%emt 0:00:56]} d5 {[%emt 0:00:03]} 3. exd5 {[%emt 0:00:27]} cxd5 {[%emt 0:00:03]} 4. c4 {[%emt 0:00:09]} Nf6 {[%emt 0:00:03]} 5. Nc3 {[%emt 0:00:24]} g6 {[%emt 0:00:14]} 6. Nf3 {[%emt 0:00:52]} Bg7 {[%emt 0:00:06]} 7. Bf4 {[%emt 0:02:51]} O-O {[%emt 0:01:25]} 8. Be2 {[%emt 0:02:51]} b6 {[%emt 0:22:57]} 9. O-O {[%emt 0:01:57]} Bb7 {[%emt 0:01:14]} 10. a3 {[%emt 0:04:00]} Nbd7 {[%emt 0:09:42]} 11. Ne5 {[%emt 0:09:23]} dxc4 {[%emt 0:05:02]} 12. Nxc4 {[%emt 0:04:36]} Rc8 {[%emt 0:05:17]} 13. Re1 {[%emt 0:06:48]} Nd5 {[%emt 0:07:11]} 14. Nxd5 {[%emt 0:02:59]} Bxd5 {[%emt 0:00:31]} 15. Ne3 {[%emt 0:06:18]} Bb7 {[%emt 0:02:12]} 16. Qa4 {[%emt 0:01:34]} a6 {[%emt 0:03:50]} 17. Rac1 {[%emt 0:03:23]} Nb8 {[%emt 0:09:08]} 18. Be5 {[%emt 0:15:19]} b5 {[%emt 0:02:48]} 19. Qb3 {[%emt 0:02:42]} Rxc1 {[%emt 0:12:50]} 20. Rxc1 {[%emt 0:00:11]} Bxe5 {[%emt 0:00:26]} 21. dxe5 {[%emt 0:00:36]} Nc6 {[%emt 0:03:10]} 22. Qc3 {[%emt 0:12:14]} Qd4 {[%emt 0:09:24]} 23. Bf3 {[%emt 0:06:07]} Rc8 {[%emt 0:01:32]} 24. Bxc6 {[%emt 0:03:40]} Qxc3 {[%emt 0:00:05]} 25. Rxc3 {[%emt 0:00:08]} Rxc6 {[%emt 0:00:16]} 26. Rxc6 {[%emt 0:00:25]} Bxc6 {[%emt 0:00:02]} 27. Kf1 {[%emt 0:00:35]} f6 {[%emt 0:01:51]} 28. exf6 {[%emt 0:01:18]} exf6 {[%emt 0:00:01]} 29. Ke2 {[%emt 0:00:40]} Kf7 {[%emt 0:00:15]} 30. Kd3 {[%emt 0:00:15]} Ke6 {[%emt 0:00:03]} 31. Kd4 {[%emt 0:00:57]} Kd6 {[%emt 0:00:26]} 32. f4 {[%emt 0:01:10]} h5 {[%emt 0:01:53]} 33. g3 {[%emt 0:01:01]} a5 {[%emt 0:00:40]} 34. b4 {[%emt 0:01:18]} axb4 {[%emt 0:00:18]} 35. axb4 {[%emt 0:00:06]} Bf3 {[%emt 0:00:23]} 36. Nc2 {[%emt 0:01:43]} Be2 {[%emt 0:01:55]} 37. Na3 {[%emt 0:01:03]} Bf1 {[%emt 0:00:33]} 38. Nb1 {[%emt 0:00:16]} g5 {[%emt 0:00:30]} 39. Nc3 {[%emt 0:03:11]} Ke6 {[%emt 0:00:30]} 40. fxg5 {[%emt 0:00:51]} fxg5 {[%emt 0:00:01]} 41. Ne4 {[%emt 0:02:29]} Kf5 {[%emt 0:00:11]} 42. Nd6+ {[%emt 0:02:07]} Kg4 {[%emt 0:00:17]} 43. Nf7 {[%emt 0:01:16]} Kh3 {[%emt 0:00:29]} 44. Ke3 {[%emt 0:00:42]} Kxh2 {[%emt 0:00:54]} 45. Kf2 {[%emt 0:00:17]} g4 {[%emt 0:00:57]} 46. Ne5 {[%emt 0:00:41]} Bg2 {[%emt 0:01:13]} 47. Ng6 {[%emt 0:00:24]} Be4 {[%emt 0:00:10]} 48. Ne5 {[%emt 0:00:37]} Bf5 {[%emt 0:00:25]} 49. Nf7 {[%emt 0:00:30]} h4 {[%emt 0:00:09]} 50. gxh4 {[%emt 0:00:26]} g3+ {[%emt 0:00:02]} 51. Ke3 {[%emt 0:00:26]} g2 {[%emt 0:00:09]} 52. Kd4 {[%emt 0:01:10]} 0-1

[Event "1st Bella Italia International 2022"]
[Site "Lignano"]
[Date "2022.08.18"]
[Round "3.19"]
[White "Montorsi, Matteo"]
[Black "Cristiani, Cesare"]
[Result "1/2-1/2"]
[ECO "C07"]
[WhiteElo "2100"]
[BlackElo "2006"]
[Annotator "NA RC"]
[PlyCount "129"]
[EventDate "2022.08.18"]
[EventCountry "ITA"]
[SourceTitle "playchess.com"]
[Source "ChessBase"]
[SourceQuality "1"]
[TimeControl "5400+30"]

1. e4 {[%emt 0:00:07]} e6 {[%emt 0:00:09]} 2. d4 {[%emt 0:00:22]} d5 {[%emt 0:00:07]} 3. Nd2 {[%emt 0:00:05]} c5 {[%emt 0:00:13]} 4. exd5 {[%emt 0:00:21]} Qxd5 {[%emt 0:00:11]} 5. Ngf3 {[%emt 0:00:07]} cxd4 {[%emt 0:00:17]} 6. Bc4 {[%emt 0:00:26]} Qd6 {[%emt 0:00:08]} 7. O-O {[%emt 0:00:35]} Nf6 {[%emt 0:00:12]} 8. Nb3 {[%emt 0:00:11]} Nc6 {[%emt 0:00:19]} 9. Nbxd4 {[%emt 0:00:17]} Nxd4 {[%emt 0:00:21]} 10. Nxd4 {[%emt 0:00:06]} a6 {[%emt 0:00:40]} 11. Re1 {[%emt 0:00:52]} Be7 {[%emt 0:00:50]} 12. c3 {[%emt 0:01:38]} O-O {[%emt 0:02:03]} 13. Qf3 {[%emt 0:02:09]} Qc7 {[%emt 0:03:30]} 14. Bd3 {[%emt 0:18:03]} Re8 {[%emt 0:08:36]} 15. Bf4 {[%emt 0:05:07]} Bd6 {[%emt 0:02:05]} 16. Bxd6 {[%emt 0:00:11]} Qxd6 {[%emt 0:00:09]} 17. Rad1 {[%emt 0:02:55]} Qc7 {[%emt 0:05:21]} 18. Qg3 {[%emt 0:14:36]} Qxg3 {[%emt 0:00:56]} 19. hxg3 {[%emt 0:00:02]} Bd7 {[%emt 0:00:24]} 20. Be2 {[%emt 0:09:26]} Rad8 {[%emt 0:02:46]} 21. Nb3 {[%emt 0:03:19]} Ba4 {[%emt 0:10:14]} 22. Bf3 {[%emt 0:01:51]} b6 {[%emt 0:10:32]} 23. Rd4 {[%emt 0:01:32]} Bxb3 {[%emt 0:00:43]} 24. Rxd8 {[%emt 0:00:16]} Rxd8 {[%emt 0:00:07]} 25. axb3 {[%emt 0:00:06]} a5 {[%emt 0:00:21]} 26. Re5 {[%emt 0:09:10]} Rd6 {[%emt 0:02:44]} 27. Rb5 {[%emt 0:03:05]} Ne8 {[%emt 0:01:24]} 28. Re5 {[%emt 0:05:27]} Nf6 {[%emt 0:00:42]} 29. Kf1 {[%emt 0:00:15]} Kf8 {[%emt 0:00:09]} 30. Ke2 {[%emt 0:02:11]} Ke7 {[%emt 0:00:32]} 31. Rb5 {[%emt 0:00:48]} Nd7 {[%emt 0:06:55]} 32. b4 {[%emt 0:02:10]} axb4 {[%emt 0:00:19]} 33. Rxb4 {[%emt 0:00:01]} Ne5 {[%emt 0:08:23]} 34. Be4 {[%emt 0:00:48]} f5 {[%emt 0:00:10]} 35. Bc2 {[%emt 0:00:49]} g5 {[%emt 0:01:33]} 36. Ra4 {[%emt 0:06:43]} h6 {[%emt 0:04:58]} 37. f4 {[%emt 0:04:25]} Ng6 {[%emt 0:02:25]} 38. Ke3 {[%emt 0:01:59]} gxf4+ {[%emt 0:02:37]} 39. gxf4 {[%emt 0:00:01]} Nh4 {[%emt 0:00:17]} 40. g3 {[%emt 0:00:10]} Ng6 {[%emt 0:00:57]} 41. Ra1 {[%emt 0:00:29]} Kf6 {[%emt 0:00:16]} 42. Rh1 {[%emt 0:00:34]} Kg7 {[%emt 0:00:18]} 43. c4 {[%emt 0:01:11]} Ne7 {[%emt 0:00:30]} 44. Ba4 {[%emt 0:01:10]} Ng8 {[%emt 0:00:14]} 45. Bd1 {[%emt 0:00:42]} Nf6 {[%emt 0:01:39]} 46. Bf3 {[%emt 0:00:16]} Nd7 {[%emt 0:01:01]} 47. b4 {[%emt 0:00:59]} e5 {[%emt 0:01:18]} 48. Bd5 {[%emt 0:01:14]} b5 {[%emt 0:02:52]} 49. fxe5 {[%emt 0:02:41]} Nxe5 {[%emt 0:00:15]} 50. Kd4 {[%emt 0:02:06]} Nxc4 {[%emt 0:02:22]} 51. Kc5 {[%emt 0:00:01]} Rg6 {[%emt 0:05:47]} 52. Bxc4 {[%emt 0:00:06]} bxc4 {[%emt 0:00:09]} 53. Kxc4 {[%emt 0:00:17]} Rxg3 {[%emt 0:00:16]} 54. b5 {[%emt 0:00:17]} Rg2 {[%emt 0:00:13]} 55. Kc3 {[%emt 0:00:47]} Rg6 {[%emt 0:00:21]} 56. Kd4 {[%emt 0:01:02]} Rb6 {[%emt 0:00:22]} 57. Kc5 {[%emt 0:00:41]} Rb8 {[%emt 0:00:08]} 58. Kc6 {[%emt 0:00:54]} Kg6 {[%emt 0:00:11]} 59. b6 {[%emt 0:00:22]} f4 {[%emt 0:00:16]} 60. Kc7 {[%emt 0:00:29]} Rf8 {[%emt 0:00:19]} 61. b7 {[%emt 0:01:12]} Kg5 {[%emt 0:04:36]} 62. b8=Q {[%emt 0:00:36]} Rxb8 {[%emt 0:00:08]} 63. Kxb8 {[%emt 0:00:04]} f3 {[%emt 0:00:16]} 64. Rh3 {[%emt 0:00:31]} Kg4 {[%emt 0:00:33]} 65. Rxh6 {[%emt 0:01:37]} 1/2-1/2

[Event "1st Bella Italia International 2022"]
[Site "Lignano"]
[Date "2022.08.18"]
[Round "3.20"]
[White "Olabe Odriozola, Eduardo"]
[Black "Colonetti, Fabio"]
[Result "1-0"]
[ECO "B23"]
[WhiteElo "1946"]
[BlackElo "2152"]
[Annotator "NA RC"]
[PlyCount "81"]
[EventDate "2022.08.18"]
[EventCountry "ITA"]
[SourceTitle "playchess.com"]
[Source "ChessBase"]
[SourceQuality "1"]
[TimeControl "5400+30"]

1. e4 {[%emt 0:00:12]} c5 {[%emt 0:00:11]} 2. Nc3 {[%emt 0:00:30]} d6 {[%emt 0:00:31]} 3. Bc4 {[%emt 0:00:23]} Nc6 {[%emt 0:00:22]} 4. d3 {[%emt 0:00:14]} g6 {[%emt 0:00:21]} 5. Bg5 {[%emt 0:01:16]} Bg7 {[%emt 0:02:11]} 6. f4 {[%emt 0:00:35]} Nd4 {[%emt 0:10:08]} 7. a4 {[%emt 0:01:06]} Qa5 {[%emt 0:03:51]} 8. Nge2 {[%emt 0:12:40]} Nxe2 {[%emt 0:06:46]} 9. Qxe2 {[%emt 0:00:57]} Bxc3+ {[%emt 0:01:03]} 10. bxc3 {[%emt 0:00:01]} Qxc3+ {[%emt 0:00:10]} 11. Kf2 {[%emt 0:00:36]} h6 {[%emt 0:19:44]} 12. Bh4 {[%emt 0:00:45]} Nf6 {[%emt 0:00:55]} 13. Rhe1 {[%emt 0:00:49]} Qd4+ {[%emt 0:16:37]} 14. Kf1 {[%emt 0:06:55]} Ng4 {[%emt 0:00:17]} 15. Bg3 {[%emt 0:03:06]} h5 {[%emt 0:00:56]} 16. f5 {[%emt 0:07:34]} Bd7 {[%emt 0:09:13]} 17. Rab1 {[%emt 0:09:25]} b6 {[%emt 0:07:30]} 18. h3 {[%emt 0:04:26]} Nh6 {[%emt 0:02:08]} 19. Qf3 {[%emt 0:09:09]} O-O {[%emt 0:06:18]} 20. Bf4 {[%emt 0:04:57]} Kh7 {[%emt 0:01:36]} 21. Be3 {[%emt 0:01:37]} Qg7 {[%emt 0:00:47]} 22. Kg1 {[%emt 0:02:30]} Bxa4 {[%emt 0:01:21]} 23. Re2 {[%emt 0:01:32]} Bc6 {[%emt 0:00:17]} 24. Rf1 {[%emt 0:00:41]} Nxf5 {[%emt 0:01:13]} 25. Ref2 {[%emt 0:03:32]} Nxe3 {[%emt 0:01:08]} 26. Qxe3 {[%emt 0:00:33]} f6 {[%emt 0:01:43]} 27. g4 {[%emt 0:01:19]} Bd7 {[%emt 0:03:02]} 28. gxh5 {[%emt 0:02:51]} gxh5+ {[%emt 0:00:32]} 29. Rg2 {[%emt 0:00:19]} Qh6 {[%emt 0:00:17]} 30. Qg3 {[%emt 0:00:28]} h4 {[%emt 0:02:16]} 31. Qf3 {[%emt 0:04:02]} e6 {[%emt 0:00:47]} 32. Kh1 {[%emt 0:01:11]} f5 {[%emt 0:01:00]} 33. Rfg1 {[%emt 0:04:16]} Rg8 {[%emt 0:01:00]} 34. exf5 {[%emt 0:00:39]} Rxg2 {[%emt 0:00:22]} 35. Qxg2 {[%emt 0:00:07]} d5 {[%emt 0:00:39]} 36. fxe6 {[%emt 0:01:03]} Bxe6 {[%emt 0:00:32]} 37. Bxd5 {[%emt 0:00:15]} Bxd5 {[%emt 0:00:26]} 38. Qxd5 {[%emt 0:00:02]} Rf8 {[%emt 0:00:22]} 39. Rg5 {[%emt 0:05:12]} Rf1+ {[%emt 0:00:53]} 40. Kg2 {[%emt 0:00:23]} Qf6 {[%emt 0:00:32]} 41. Qe4+ {[%emt 0:00:11]} 1-0

[Event "1st Bella Italia International 2022"]
[Site "Lignano"]
[Date "2022.08.19"]
[Round "4.1"]
[White "Lumachi, Gabriele"]
[Black "Sonis, Francesco"]
[Result "1/2-1/2"]
[ECO "D37"]
[WhiteElo "2355"]
[BlackElo "2543"]
[Annotator "TA"]
[PlyCount "108"]
[EventDate "2022.08.18"]
[EventCountry "ITA"]
[SourceTitle "playchess.com"]
[Source "ChessBase"]
[SourceQuality "1"]
[TimeControl "5400+30"]

{[%evp 9,108,27,32,32,37,6,0,19,14,14,16,18,16,10,28,8,5,0,7,0,12,7,14,0,26,20,15,6,2,0,9,12,5,5,11,6,14,0,0,0,8,0,0,0,0,0,0,0,0,0,0,0,0,0,-7,-35,-37,-36,0,0,0,0,15,15,31,31,32,8,4,0,0,0,18,0,0,0,0,-22,0,0,0,0,0,0,0,0,0,0,0,0,0,0,0,0,0,0,0,0,0,0,0]} 1. d4 {[%emt 0:00:03]} e6 {[%emt 0:04:15]} 2. c4 {[%emt 0:00:21]} a6 {[%emt 0:00:02]} 3. Nc3 {[%emt 0:06:06]} d5 {[%emt 0:00:05]} 4. cxd5 {[%emt 0:00:46]} exd5 {[%emt 0:00:04]} 5. Nf3 {[%emt 0:00:04]} Nf6 {[%emt 0:00:06]} 6. Bg5 {[%emt 0:00:09] D37: Queen's Gambit Declined: 5 Bf4.} Be6 {[%emt 0:00:16]} 7. Bxf6 {[%emt 0:01:34]} Qxf6 {[%emt 0:00:09]} 8. Qb3 {[%emt 0:00:03][%csl LRb7,LRd5]} Ra7 {[%emt 0:00:04]} 9. a3 {[%emt 0:02:54]} ({Much less strong is} 9. Nxd5 Qd8 10. e4 c6 $16) 9... Qd8 {[%emt 0:01:10]} 10. Qc2 {[%emt 0:00:06]} Nd7 {[%emt 0:02:11]} 11. e4 {[%emt 0:01:31]} dxe4 {[%emt 0:01:12]} 12. Nxe4 {[%emt 0:00:59]} Be7 {[%emt 0:02:16] Inhibits Neg5.} 13. Bc4 {[%emt 0:04:16]} Bxc4 {[%emt 0:01:00]} 14. Qxc4 {[%emt 0:00:08]} O-O {[%emt 0:00:18]} 15. O-O {[%emt 0:01:38] [#]} Nb6 $146 {[%emt 0:00:53]} ({Predecessor:} 15... Nf6 16. Nc3 c6 17. Rfe1 Ra8 18. Re2 Bd6 19. Rae1 Qc7 20. Ne5 Rad8 21. b4 Qb6 {1-0 (46) Horvath,D (2453)-Costa,L (2069) Cattolica 2021}) 16. Qc2 {[%emt 0:01:36]} a5 {[%emt 0:01:36]} 17. Rfe1 {[%emt 0:02:57]} c6 {[%emt 0:02:26]} 18. Nc5 {[%emt 0:08:30]} Nd5 {[%emt 0:02:57]} 19. Ne5 {[%emt 0:03:23]} Nf6 {[%emt 0:09:14] Prevents Ncd7.} 20. Rad1 {[%emt 0:03:10]} Bd6 {[%emt 0:01:54]} 21. Qf5 {[%emt 0:12:43]} Qc8 {[%emt 0:05:42]} 22. Qf3 {[%emt 0:02:49]} Qc7 {[%emt 0:01:20]} 23. h4 {[%emt 0:01:15]} Raa8 {[%emt 0:01:18]} 24. Nc4 {[%emt 0:06:11]} Rfd8 {[%emt 0:03:29]} 25. h5 {[%emt 0:03:49][%cal Oh5h6]} h6 {[%emt 0:00:19]} 26. g3 {[%emt 0:01:52]} Bf8 {[%emt 0:01:13]} 27. Ne4 {[%emt 0:01:47]} Nd5 {[%emt 0:00:47]} 28. Kg2 {[%emt 0:01:53]} Re8 {[%emt 0:01:06]} 29. Ne3 {[%emt 0:04:00]} Nxe3+ {[%emt 0:00:29]} 30. Rxe3 {[%emt 0:00:34]} Rad8 {[%emt 0:00:10]} 31. Nc3 {[%emt 0:04:54]} Rxe3 {[%emt 0:00:55]} 32. fxe3 {[%emt 0:02:20]} Qb6 {[%emt 0:01:04]} 33. Rd2 {[%emt 0:00:16][%cal Bd1d2,Bd2f2,Bf2f5][%mdl 32]} Qb3 {[%emt 0:00:51][%cal Of8a3]} 34. Rf2 {[%emt 0:00:43]} Qe6 {[%emt 0:02:38]} 35. Qf5 {[%emt 0:00:54]} Qxf5 {[%emt 0:12:47]} 36. Rxf5 $11 {[%emt 0:00:06][%mdl 4096] Endgame KRB-KRN} b6 {[%emt 0:00:03]} 37. Kf3 {[%emt 0:01:06]} Be7 {[%emt 0:01:36]} 38. Ke4 {[%emt 0:07:51]} g6 {[%emt 0:03:09] The position is equal.} 39. hxg6 {[%emt 0:00:04]} fxg6 {[%emt 0:00:03]} 40. Rf1 {[%emt 0:00:06]} h5 {[%emt 0:00:08]} 41. d5 {[%emt 0:03:00]} cxd5+ {[%emt 0:03:06]} 42. Nxd5 {[%emt 0:00:05]} Bd6 {[%emt 0:00:03]} 43. Rf3 {[%emt 0:04:44]} b5 {[%emt 0:00:46]} 44. Nf4 {[%emt 0:01:41]} Kh7 {[%emt 0:05:02]} 45. Ne6 {[%emt 0:00:14] Inhibits Rf8.} Rd7 {[%emt 0:00:05]} 46. Nf8+ {[%emt 0:02:47]} Bxf8 {[%emt 0:00:05]} 47. Rxf8 {[%emt 0:00:04] KR-KR} Rd2 {[%emt 0:00:04]} 48. b3 {[%emt 0:00:34]} Rb2 {[%emt 0:05:43]} 49. Ra8 {[%emt 0:00:13]} Rxb3 {[%emt 0:00:06]} 50. Rxa5 {[%emt 0:00:11]} Kg7 {[%emt 0:01:01]} 51. Ra6 {[%emt 0:00:56]} g5 {[%emt 0:00:24]} 52. Kf5 {[%emt 0:01:55]} Rxe3 {[%emt 0:00:07]} 53. Kxg5 {[%emt 0:00:48]} Rxg3+ {[%emt 0:00:04]} 54. Kxh5 {[%emt 0:00:08]} Kf7 {[%emt 0:00:04] Weighted Error Value: White=0.04 (flawless) /Black=0.04 (flawless)} 1/2-1/2